bitfinex-derivatives/quotes_ETHF0:USTF0_20251001
["timestamp","ask_amount","ask_price","bid_price","bid_amount"]
[1759331033269,1.43224,4329.4,4329.3,41.64403]
[1759331033778,0.6066,4329.4,4329.3,42.25673]
[1759331034069,1.02204,4329.4,4329.3,41.22858]
[1759331035373,0.6066,4329.4,4329.3,41.64403]
[1759331035675,1.90111,4329.7,4329.6,1.27052]
[1759331035873,3.2078,4329.9,4329.8,1.8832]
[1759331035874,3.8514,4329.9,4329.8,1.8832]
[1759331036173,1.49865,4330.3,4330.2,1.27045]
[1759331036673,1.49862,4330.7,4330.6,1.27041]
[1759331037076,1.90102,4330.7,4330.6,0.4265]
[1759331037273,0.41533,4330.5,4330.4,0.84184]
[1759331037478,2.14883,4330.5,4330.4,0.4265]
[1759331037677,2.14883,4330.5,4330.4,41.2265]
[1759331038378,2.14883,4330.5,4330.4,41.64184]
[1759331038677,1.7335,4330.5,4330.4,41.64184]
[1759331038878,1.7335,4330.5,4330.4,42.25454]
[1759331039078,1.7335,4330.5,4330.4,41.64184]
[1759331040682,1.3311,4330.5,4330.4,42.25454]
[1759331040981,0.41529,4330.9,4330.8,1.4678]
[1759331041181,1.0833,4331.1,4331.0,1.88308]
[1759331041475,0.0001778,4331.3,4331.0,0.2638]
[1759331041675,0.4397,4330.9,4330.8,3.2078]
[1759331041881,0.4154378,4331.3,4330.8,4.0629]
[1759331042177,0.0001778,4331.3,4331.0,0.2638]
[1759331042379,0.0001778,4331.3,4331.1,0.6127]
[1759331042582,1.9011278,4331.3,4331.2,0.8551]
[1759331042783,1.4858778,4331.3,4331.2,0.8551]
[1759331043079,0.0001778,4331.3,4331.2,0.8551]
[1759331043777,0.4398778,4331.3,4331.2,0.8551]
[1759331043974,0.0001778,4331.3,4331.2,0.8551]
[1759331044984,0.0001778,4331.3,4331.2,41.6551]
[1759331049680,1.0834778,4331.3,4331.2,41.6551]
[1759331050584,6.4858778,4331.3,4331.2,0.4265]
[1759331050784,0.8914,4331.0,4330.9,0.84179]
[1759331050985,1.7335,4331.0,4330.9,0.84179]
[1759331051184,2.14878,4331.0,4330.9,0.41529]
[1759331051383,1.46135,4330.3,4330.2,0.4265]
[1759331051684,1.90105,4330.3,4330.2,0.4265]
[1759331051879,1.90105,4330.3,4330.2,41.2265]
[1759331054188,3.2078,4331.1,4331.0,0.41528]
[1759331054481,1.05887,4331.2,4331.0,0.41528]
[1759331054482,1.4857,4331.2,4331.1,0.8551]
[1759331054685,1.49854,4331.5,4331.2,0.41526]
[1759331054983,0.41525,4331.4,4331.2,0.41526]
[1759331055287,0.2478,4331.5,4331.2,1.88306]
[1759331055486,0.2478,4331.5,4331.2,1.27036]
[1759331055691,0.6436,4331.4,4331.2,1.27036]
[1759331055879,1.0834778,4331.3,4331.2,1.27036]
[1759331056487,0.0001778,4331.3,4331.2,1.27036]
[1759331056885,0.4154278,4331.3,4331.2,1.88306]
[1759331057086,1.0590278,4331.3,4331.2,1.88306]
[1759331057387,0.0001778,4331.3,4331.2,1.27036]
[1759331057788,0.0001778,4331.3,4331.2,42.07036]
[1759331059588,0.0001778,4331.3,4331.2,45.27816]
[1759331061488,0.6656,4330.5,4330.4,1.22937723]
[1759331061683,1.079,4330.5,4330.4,0.8254]
[1759331061986,0.2408,4331.0,4330.9,0.8254]
[1759331062191,0.0001778,4331.3,4330.9,1.24069]
[1759331062492,0.0001778,4331.3,4331.0,0.8254]
[1759331062493,0.41528,4331.1,4331.0,0.8254]
[1759331062681,1.47378,4331.1,4331.0,0.8254]
[1759331063593,1.88718,4331.1,4331.0,0.8254]
[1759331064788,1.88718,4331.1,4331.0,0.4172]
[1759331064989,1.88718,4331.1,4331.0,0.8275]
[1759331066590,1.88718,4331.1,4331.0,0.4172]
[1759331068194,1.7113,4330.5,4330.4,0.8024]
[1759331069690,1.7113,4330.5,4330.4,1.21774]
[1759331069896,1.10228,4331.0,4330.9,1.21769]
[1759331070393,2.12658,4331.0,4330.9,1.21769]
[1759331071296,0.8578,4331.0,4330.9,1.21769]
[1759331071484,1.27308,4331.0,4330.9,1.21769]
[1759331071690,0.5996,4331.2,4331.1,1.21767]
[1759331071890,0.5996,4331.2,4331.1,1.50657]
[1759331072295,0.0001778,4331.3,4331.1,0.41527]
[1759331072595,0.0001778,4331.3,4331.2,3.2078]
[1759331072793,0.0001778,4331.3,4331.2,44.0078]
[1759331072994,0.0001778,4331.3,4331.2,45.23717723]
[1759331073194,0.0001778,4331.3,4331.2,44.0078]
[1759331073692,0.0001778,4331.3,4331.2,50.23717723]
[1759331073888,0.0001778,4331.3,4331.2,49.19621481]
[1759331075202,0.0001778,4331.3,4331.2,44.0078]
[1759331075397,0.0001778,4331.3,4331.2,45.23976766]
[1759331075594,0.0001778,4331.3,4331.2,49.0078]
[1759331076095,0.0001778,4331.3,4331.2,44.2967]
[1759331076288,0.0001778,4331.3,4331.2,44.0078]
[1759331076495,0.0001778,4331.3,4331.2,44.2967]
[1759331077693,1.0150378,4331.3,4331.2,40.8]
[1759331077894,0.5997778,4331.3,4331.2,40.8]
[1759331078899,0.5997778,4331.3,4331.2,41.0889]
[1759331080298,0.5997778,4331.3,4331.2,40.8]
[1759331080499,0.5997778,4331.3,4330.6,1.23196766]
[1759331080500,0.4247,4330.8,4330.5,1.23196766]
[1759331080805,0.687,4331.0,4330.5,0.8024]
[1759331080806,1.4531,4330.6,4330.5,0.8024]
[1759331080997,1.4531,4330.6,4330.5,0.3921]
[1759331082003,0.5996,4330.6,4330.5,0.8024]
[1759331082197,0.5996,4330.6,4330.5,1.0913]
[1759331082900,1.70189,4331.0,4330.9,0.3921]
[1759331083406,1.7113,4331.0,4330.9,0.8074]
[1759331083708,1.2866,4331.0,4330.9,1.2177]
[1759331084103,0.8578,4331.0,4330.9,1.5066]
[1759331085404,1.2866,4331.0,4330.9,1.2177]
[1759331086305,1.7113,4331.0,4330.9,0.8074]
[1759331086507,0.8578,4330.5,4330.4,41.21535]
[1759331087605,0.8535,4330.2,4329.9,1.64735766]
[1759331087809,1.7113,4330.0,4329.9,0.41539]
[1759331088010,1.7113,4330.0,4329.9,0.80749]
[1759331088208,1.7113,4330.0,4329.9,41.60749]
[1759331088403,2.12669,4330.0,4329.8,0.4154]
[1759331088906,1.7113,4330.0,4329.9,40.8]
[1759331089519,1.0284,4329.9,4329.8,0.8075]
[1759331089918,1.0284,4329.9,4329.8,42.0178]
[1759331090712,0.5996,4329.9,4329.8,42.3067]
[1759331090906,1.0284,4330.3,4330.2,0.41536]
[1759331091111,1.0284,4330.3,4330.2,1.21776]
[1759331091312,1.4531,4330.3,4330.2,1.21776]
[1759331091920,1.4531,4330.3,4330.2,0.3921]
[1759331092116,1.7113,4330.0,4329.9,0.3921]
[1759331093417,1.7113,4330.0,4329.9,0.8024]
[1759331093418,1.2866,4330.0,4329.9,0.8024]
[1759331093717,0.8578,4330.0,4329.9,0.8024]
[1759331094120,1.6507,4330.0,4329.9,0.8024]
[1759331094510,1.6507,4330.0,4329.9,1.21779]
[1759331095416,1.0511,4330.0,4329.9,0.41539]
[1759331095610,1.46648,4330.0,4329.9,0.41539]
[1759331095816,1.0511,4330.0,4329.9,1.23609]
[1759331096020,1.6872,4330.0,4329.9,1.23609]
[1759331096821,1.6872,4330.0,4329.9,0.83349]
[1759331097123,1.6872,4330.0,4329.9,0.41539]
[1759331099618,1.284,4330.0,4329.9,1.23609]
[1759331100121,1.6872,4330.0,4329.9,1.23609]
[1759331100320,1.6872,4330.0,4329.9,0.83349]
[1759331100913,1.6872,4330.0,4329.9,1.23609]
[1759331101224,2.10258,4330.0,4329.9,1.23609]
[1759331101413,1.6872,4330.0,4329.9,1.23609]
[1759331101614,1.284,4330.0,4329.9,1.23609]
[1759331101819,1.6872,4330.0,4329.9,1.23609]
[1759331102321,0.8943,4330.0,4329.9,1.23609]
[1759331102522,0.6361,4330.0,4329.9,1.50339]
[1759331102716,1.6872,4330.5,4330.4,1.23605]
[1759331103426,0.8857,4330.0,4329.9,1.088]
[1759331103930,1.6786,4330.0,4329.9,0.83349]
[1759331104229,1.6786,4330.0,4329.9,0.41539]
[1759331105233,1.6786,4330.0,4329.9,0.83349]
[1759331105428,1.6786,4330.0,4329.9,1.23609]
[1759331105923,0.6361,4330.0,4329.9,1.50339]
[1759331106128,0.2582,4330.5,4330.4,1.50335]
[1759331106526,0.6479,4330.5,4330.4,1.23605]
[1759331106726,1.6872,4330.5,4330.4,1.23605]
[1759331106923,1.6872,4330.5,4330.4,1.23604]
[1759331107327,1.284,4330.5,4330.4,1.23604]
[1759331108334,0.8943,4330.5,4330.4,1.23604]
[1759331108630,0.8943,4330.5,4330.4,42.03604]
[1759331109430,1.30963,4330.5,4330.4,41.63344]
[1759331109630,1.30963,4330.5,4330.4,40.8]
[1759331109834,0.8943,4330.5,4330.4,40.8]
[1759331110033,1.30963,4330.5,4330.4,40.8]
[1759331110334,1.30963,4330.5,4330.4,41.21534]
[1759331110632,1.30963,4330.5,4330.4,40.8]
[1759331111028,1.30963,4330.5,4330.4,41.21534]
[1759331111228,1.30963,4330.5,4330.4,40.8]
[1759331112636,6.78493963,4330.5,4330.4,40.8]
[1759331112833,1.45788,4330.0,4329.9,0.41539]
[1759331113035,2.09398,4330.0,4329.9,0.41539]
[1759331113436,1.0258,4329.7,4329.6,3.6259]
[1759331113636,1.0258,4329.7,4329.6,4.04132]
[1759331113838,1.0258,4329.7,4329.6,45.24392]
[1759331114229,1.44115,4330.3,4330.2,1.23606]
[1759331114427,1.91658174,4330.3,4330.2,1.23606]
[1759331114637,2.31978174,4330.3,4330.2,1.23606]
[1759331115138,2.31978174,4330.3,4330.2,0.4181]
[1759331115733,1.84437,4330.1,4330.0,0.83348]
[1759331115938,2.31980174,4330.1,4330.0,0.83348]
[1759331116737,0.6361,4330.1,4330.0,1.50338]
[1759331116943,0.6479,4330.5,4330.4,1.23604]
[1759331117235,1.52683076,4330.5,4330.4,0.4181]
[1759331117438,2.16293076,4330.5,4330.4,0.4181]
[1759331117738,2.57826076,4330.5,4330.4,0.83344]
[1759331117936,2.57826076,4330.5,4330.4,41.63344]
[1759331118536,2.16293076,4330.5,4330.4,41.63344]
[1759331118845,0.6361,4330.5,4330.4,41.90074]
[1759331119339,0.8857,4330.5,4330.4,41.90074]
[1759331119538,0.8857,4330.5,4330.4,41.63344]
[1759331121440,0.8857,4330.5,4330.4,41.88234]
[1759331121836,0.8857,4330.5,4330.4,41.63344]
[1759331122438,0.8857,4330.5,4330.4,41.2181]
[1759331122633,0.8857,4330.5,4330.4,40.8]
[1759331122634,1.30103,4330.5,4330.4,40.8]
[1759331123543,1.77674783,4330.5,4330.4,40.8]
[1759331123938,0.8857,4330.5,4330.4,41.21534]
[1759331125245,1.30103,4330.5,4330.4,41.21534]
[1759331126043,0.8857,4330.5,4330.4,41.21534]
[1759331126549,1.30103,4330.5,4330.4,40.8]
[1759331126850,1.77675141,4330.5,4330.4,40.8]
[1759331127039,1.83064,4330.4,4330.3,0.79955]
[1759331127240,1.4153,4330.4,4330.3,1.18505]
[1759331127443,1.4153,4330.4,4330.3,41.98505]
[1759331127841,1.83064,4330.4,4330.3,41.98505]
[1759331128048,1.4153,4330.4,4330.3,41.98505]
[1759331128935,5.03844,4330.4,4330.3,40.8]
[1759331129140,5.51427688,4330.4,4330.3,40.8]
[1759331130746,5.51427688,4330.4,4330.3,41.21535]
[1759331131052,1.09043688,4330.4,4330.3,41.46145]
[1759331131347,1.50577688,4330.4,4330.3,41.46145]
[1759331131838,1.09043688,4330.4,4330.3,41.46145]
[1759331132042,1.50577688,4330.4,4330.3,41.46145]
[1759331132443,1.50577688,4330.4,4330.3,41.0461]
[1759331132739,1.50577688,4330.4,4330.3,40.8]
[1759331132942,1.83069,4330.1,4330.0,0.3842]
[1759331133142,2.30652688,4330.1,4330.0,0.3842]
[1759331133351,2.30652688,4330.1,4330.0,41.1842]
[1759331135048,2.30652688,4330.1,4330.0,41.59958]
[1759331136550,2.30652688,4330.1,4330.0,41.1842]
[1759331137250,2.30652688,4330.1,4330.0,40.8]
[1759331137647,1.2161,4329.8,4329.7,0.79961]
[1759331137846,1.8307,4329.8,4329.7,0.79961]
[1759331138245,1.8307,4329.8,4329.7,41.59961]
[1759331139347,5.52130086,4329.8,4329.7,41.59961]
[1759331139639,0.41544,4329.5,4329.4,0.41544]
[1759331139849,2.06694,4329.5,4329.4,0.79964]
[1759331140051,2.54978535,4329.5,4329.4,0.79964]
[1759331140345,2.54978535,4329.5,4329.4,41.59964]
[1759331141249,2.06694,4329.5,4329.4,41.59964]
[1759331141646,2.06694,4329.5,4329.4,41.1842]
[1759331141846,0.41545,4329.3,4329.2,0.00213982]
[1759331142049,5.03855,4329.3,4329.2,0.00213982]
[1759331142251,5.52118528,4329.3,4329.2,0.38633982]
[1759331142757,5.52118528,4329.3,4329.2,1.18729982]
[1759331143144,5.52118528,4329.3,4329.2,0.00213982]
[1759331143452,5.52118528,4329.3,4329.2,0.38633982]
[1759331143951,5.52118528,4329.3,4329.2,0.77183982]
[1759331144350,5.52118528,4329.3,4329.2,1.18729982]
[1759331144752,5.03855,4329.3,4329.2,1.18729982]
[1759331144958,5.1052568,4329.3,4329.2,1.18729982]
[1759331145150,4.6231,4329.3,4329.2,1.18729982]
[1759331145658,5.03855,4329.3,4329.2,0.00213982]
[1759331145854,5.03855,4329.3,4329.2,0.80179982]
[1759331146044,5.03855,4329.3,4329.2,0.41759982]
[1759331146456,4.6231,4329.3,4329.2,0.41759982]
[1759331146650,4.6231,4329.3,4329.2,1.18729982]
[1759331147246,1.28796,4330.5,4329.2,1.18729982]
[1759331147247,0.401,4329.8,4329.7,0.7697]
[1759331147452,0.6146,4329.8,4329.7,1.43121]
[1759331147655,0.8508,4330.0,4329.9,1.18509]
[1759331147852,3.2078,4330.3,4330.2,0.41536]
[1759331148054,4.09058152,4330.3,4330.2,1.18506]
[1759331148254,4.09058152,4330.3,4330.2,1.43116]
[1759331148450,4.70518152,4330.3,4330.2,1.18506]
[1759331148757,5.10488152,4330.3,4330.2,0.7697]
[1759331149851,0.48178152,4330.3,4330.2,1.0158]
[1759331150058,1.0156,4330.9,4330.8,1.18501]
[1759331150256,1.89706101,4330.9,4330.8,1.18501]
[1759331150554,2.31236101,4330.9,4330.6,0.41532]
[1759331150764,0.48176101,4330.8,4330.7,40.8]
[1759331150954,1.09636101,4330.8,4330.7,40.8]
[1759331152650,4.30416101,4330.8,4330.7,40.8]
[1759331154156,2.03364,4330.5,4330.4,0.41534]
[1759331154352,2.76246101,4330.5,4330.4,1.13594]
[1759331154560,1.8745,4330.5,4330.4,1.36114]
[1759331155165,1.8745,4330.5,4330.4,42.16114]
[1759331155368,1.8745,4330.5,4330.4,41.93594]
[1759331155866,0.5691,4330.8,4330.7,0.77561]
[1759331156074,1.4571975,4330.8,4330.7,1.13591]
[1759331156366,1.8647975,4330.8,4330.7,0.77561]
[1759331157063,0.41533,4330.6,4330.4,40.8]
[1759331157366,1.79823,4330.6,4330.5,0.41534]
[1759331157566,2.28017724,4330.6,4330.5,0.41534]
[1759331157966,2.28017724,4330.6,4330.5,0.77564]
[1759331158269,0.65074,4330.5,4330.4,40.8]
[1759331158562,1.62604,4330.5,4330.4,0.41535]
[1759331158757,2.03364,4330.5,4330.4,0.41535]
[1759331159563,1.6183,4330.5,4330.4,0.77565]
[1759331159963,2.03364,4330.5,4330.4,0.77565]
[1759331160160,2.03364,4330.5,4330.4,1.36115]
[1759331160161,0.5691,4330.5,4330.4,1.36115]
[1759331160355,3.7769,4330.9,4330.8,1.36111]
[1759331160567,4.25878059,4330.9,4330.8,1.36111]
[1759331160963,1.05098059,4330.9,4330.8,42.16111]
[1759331161260,0.9754778,4331.3,4331.2,1.13587]
[1759331161666,0.5692778,4331.3,4331.2,1.36107]
[1759331161967,0.0001778,4331.3,4331.2,1.13587]
[1759331162665,0.9754778,4331.3,4331.2,1.13587]
[1759331162859,1.3830778,4331.3,4331.2,0.41527]
[1759331163064,1.6183,4331.0,4330.9,3.6231]
[1759331163372,0.5691,4330.9,4330.8,41.21531]
[1759331164060,0.2354,4331.0,4330.8,41.21531]
[1759331164265,1.3830778,4331.3,4331.2,0.3603]
[1759331164465,1.6183,4331.0,4330.9,1.13589]
[1759331164661,1.6183,4331.0,4330.9,0.3603]
[1759331165068,1.3829,4330.4,4330.2,0.41536]
[1759331165270,1.6183,4330.0,4329.9,0.41539]
[1759331165866,1.6183,4330.0,4329.9,0.77569]
[1759331166171,1.6183,4330.0,4329.9,1.13599]
[1759331166366,1.2107,4330.0,4329.9,1.13599]
[1759331167265,0.2354,4329.5,4329.2,0.00213982]
[1759331167575,1.3829,4328.9,4328.8,0.4155]
[1759331167778,1.3829,4328.9,4328.8,41.5758]
[1759331168378,1.3829,4328.9,4328.8,41.5783896]
[1759331171165,1.3829,4328.9,4328.8,0.4180896]
[1759331171370,1.3829,4328.9,4328.8,0.0025896]
[1759331173876,1.3829,4328.9,4328.8,0.3628896]
[1759331174480,1.3829,4328.9,4328.8,0.0025896]
[1759331174983,0.9753,4328.9,4328.8,0.7231896]
[1759331175181,4.257,4329.5,4329.4,0.3603]
[1759331175682,4.8261,4329.5,4329.4,0.3603]
[1759331175981,4.8261,4329.5,4329.4,0.41544]
[1759331176975,1.6183,4329.5,4329.4,0.41544]
[1759331177879,4.8261,4329.5,4329.4,0.41544]
[1759331179890,13.4861,4329.5,4329.4,0.41544]
[1759331181487,6.2161,4329.5,4329.4,0.41544]
[1759331181791,4.8261,4329.5,4329.4,0.85144]
[1759331181993,4.8261,4329.5,4329.4,1.25714]
[1759331182394,1.6183,4329.5,4329.4,1.25714]
[1759331182585,0.5691,4329.5,4329.4,6.56584]
[1759331182796,0.8281,4329.5,4329.4,6.56584]
[1759331183094,0.8281,4329.5,4329.4,6.25714]
[1759331183296,0.8281,4329.5,4329.4,6.56584]
[1759331183493,3.8632,4330.0,4329.9,0.41539]
[1759331183695,3.2078,4330.0,4329.9,1.84139]
[1759331183888,4.0683,4330.0,4329.9,1.22799]
[1759331184091,4.3198,4330.0,4329.9,1.22799]
[1759331184499,4.3198,4330.0,4329.9,0.41539]
[1759331184999,4.3198,4330.0,4329.9,0.81399]
[1759331185496,4.3198,4330.0,4329.9,1.22799]
[1759331185698,4.9802,4330.0,4329.9,1.84139]
[1759331185891,1.7724,4330.0,4329.9,1.84139]
[1759331186198,4.9641,4330.5,4329.3,3.2078]
[1759331186400,4.9641,4330.5,4330.4,0.41535]
[1759331187099,0.71711064,4330.5,4330.4,5.41535]
[1759331187401,0.8958,4331.0,4330.9,0.4153]
[1759331188197,0.8958,4331.0,4330.9,5.4153]
[1759331189000,0.8958,4331.0,4330.9,46.2153]
[1759331190897,0.4153,4330.9,4329.8,1.23196766]
[1759331191098,0.41553,4328.5,4328.4,2.04285686]
[1759331191295,0.41557,4328.1,4328.0,0.8633]
[1759331192096,0.4181139,4328.1,4328.0,0.8633]
[1759331192296,0.4181139,4328.1,4328.0,0.86598272]
[1759331192700,0.95266758,4328.1,4328.0,0.86598272]
[1759331193399,0.95266758,4328.1,4328.0,0.61608272]
[1759331193603,0.94441758,4328.1,4328.0,0.00268272]
[1759331194803,0.77371973,4328.1,4328.0,0.00268272]
[1759331196298,0.41561,4327.6,4327.5,0.2499]
[1759331196499,3.2078,4327.6,4327.3,0.6134]
[1759331196804,0.41563,4327.4,4327.3,0.6134]
[1759331197402,0.41563,4327.4,4327.3,0.61535628]
[1759331198401,3.2078,4327.6,4327.5,1.6759]
[1759331198800,3.2078,4327.6,4327.5,2.67710791]
[1759331199505,3.2078,4327.6,4327.5,1.6759]
[1759331201103,3.2078,4327.6,4327.5,2.67710791]
[1759331202007,3.2078,4327.6,4327.5,1.6759]
[1759331205510,3.2078,4327.6,4327.5,2.67710791]
[1759331206905,3.2078,4327.6,4327.5,3.09272791]
[1759331210298,3.6259039,4328.1,4328.0,1.67747]
[1759331210703,3.2103439,4328.1,4328.0,1.67747]
[1759331211008,3.6259039,4328.1,4328.0,1.67747]
[1759331211209,3.2103439,4328.1,4328.0,1.67747]
[1759331211702,3.6259039,4328.1,4328.0,1.2619]
[1759331212103,3.2103439,4328.1,4328.0,2.09147]
[1759331213308,3.3707439,4328.1,4328.0,2.09147]
[1759331213699,3.7863039,4328.1,4328.0,1.6759]
[1759331213898,0.576,4327.7,4327.6,0.6582]
[1759331214104,0.576,4327.7,4327.5,0.41562]
[1759331214300,4.7363,4327.6,4327.5,0.41562]
[1759331215916,4.7363,4327.6,4327.5,0.85032]
[1759331216116,4.7363,4327.6,4327.5,1.50852]
[1759331217307,4.083,4327.6,4327.5,2.25862]
[1759331218208,5.15191,4327.6,4327.5,2.25862]
[1759331218406,5.15191,4327.6,4327.5,1.07382]
[1759331218609,5.15191,4327.6,4327.5,0.6582]
[1759331219209,5.15191,4327.6,4327.5,1.07382]
[1759331219408,5.68746996,4327.6,4327.5,1.07382]
[1759331219613,1.94413,4327.4,4327.3,0.41759628]
[1759331219810,11.45968996,4327.4,4327.3,0.00195628]
[1759331220012,0.4357,4326.6,4326.5,0.6788]
[1759331220310,1.42543513,4326.6,4326.5,2.21992]
[1759331220612,1.42543513,4326.6,4326.5,3.22112791]
[1759331221114,0.55023513,4326.6,4326.5,3.2228206]
[1759331221713,0.4357,4327.3,4327.2,1.97575]
[1759331221908,0.0025439,4328.1,4328.0,2.25857]
[1759331221909,0.4382439,4328.1,4328.0,2.25857]
[1759331222114,0.0025439,4328.1,4328.0,2.25857]
[1759331222409,0.0025439,4328.1,4328.0,48.05857]
[1759331222616,3.2078,4328.8,4328.7,1.97561]
[1759331223615,3.21045921,4328.8,4328.7,1.97561]
[1759331224712,4.08565921,4328.8,4328.7,1.5601]
[1759331225109,4.73895921,4328.8,4328.7,1.0929]
[1759331225505,4.73895921,4328.8,4328.1,1.50846]
[1759331225506,0.8752,4328.2,4328.1,1.50846]
[1759331225713,1.5285,4328.7,4328.6,1.07372]
[1759331226011,1.5285,4328.7,4328.6,1.50842]
[1759331226308,1.5285,4328.2,4328.1,0.6582]
[1759331226512,4.7363,4328.2,4328.1,1.07376]
[1759331227011,4.083,4328.2,4328.1,1.50846]
[1759331227215,4.083,4328.2,4328.1,1.97566]
[1759331227712,3.6435,4328.2,4328.1,1.97566]
[1759331229614,4.083,4328.2,4328.1,1.97566]
[1759331229814,0.8752,4327.8,4327.7,0.4156]
[1759331230010,0.8752,4327.6,4327.5,0.41562]
[1759331230210,4.083,4327.6,4327.5,0.41562]
[1759331230409,4.7363,4327.6,4327.5,1.07382]
[1759331230808,4.7363,4327.6,4327.5,1.50852]
[1759331231017,4.083,4327.6,4327.5,2.25862]
[1759331231216,3.2078,4327.6,4327.5,2.25862]
[1759331232016,4.083,4327.6,4327.5,2.25862]
[1759331232710,4.083,4328.2,4327.5,0.2829]
[1759331232915,4.7363,4328.2,4328.1,1.97566]
[1759331233111,4.7363,4328.2,4328.0,0.41557]
[1759331233312,1.5285,4328.1,4328.0,0.41557]
[1759331233514,0.4357,4327.7,4327.6,1.97571]
[1759331234313,4.7363,4327.7,4327.6,1.50851]
[1759331234615,4.62104625,4327.7,4327.3,0.41564]
[1759331234810,0.8752,4327.4,4327.1,0.41566]
[1759331235016,0.8752,4326.7,4326.6,1.50861]
[1759331235317,4.083,4326.7,4326.6,1.50861]
[1759331235918,0.8752,4326.7,4326.6,1.50861]
[1759331236409,0.8752,4326.7,4326.6,1.97581]
[1759331237510,3.8611,4327.2,4327.1,0.41566]
[1759331237713,5.27423467,4327.2,4327.1,0.41566]
[1759331237913,3.74573467,4327.2,4327.1,1.97576]
[1759331238313,5.27423467,4327.2,4327.1,1.5601]
[1759331238615,5.27423467,4327.2,4327.1,1.0929]
[1759331239217,5.27423467,4327.2,4327.1,0.6582]
[1759331239419,5.27423467,4327.2,4327.0,0.69856]
[1759331239420,1.0928,4327.1,4327.0,0.41567]
[1759331239620,0.6533,4327.0,4326.5,41.74279269]
[1759331239819,0.4375,4326.6,4326.5,41.74279269]
[1759331240722,0.4375,4326.6,4326.5,42.15851269]
[1759331241315,1.583,4326.6,4326.5,0.00169269]
[1759331241514,1.583,4326.6,4324.5,4.39604975]
[1759331241515,1.583,4325.6,4325.5,1.51641]
[1759331241716,5.32869795,4325.6,4325.5,1.51641]
[1759331242222,4.095,4325.6,4325.5,2.22411]
[1759331242419,4.09741137,4325.6,4325.5,2.22612492]
[1759331242720,3.21021137,4325.6,4325.5,2.22612492]
[1759331242918,0.00241137,4325.6,4325.5,2.22612492]
[1759331243125,0.00241137,4325.6,4325.5,48.02612492]
[1759331243421,3.2078,4326.6,4326.5,2.25762]
[1759331244422,3.20971521,4326.6,4326.5,2.25762]
[1759331244724,0.00191521,4326.6,4326.5,2.25762]
[1759331245522,0.00191521,4326.6,4326.5,48.05762]
[1759331245925,3.2078,4327.9,4327.3,1.03909]
[1759331246118,0.9708224,4327.8,4327.7,2.034]
[1759331246419,0.6912,4328.8,4327.8,0.9243]
[1759331246622,3.6417,4328.5,4328.4,2.03393]
[1759331246924,4.18033396,4328.5,4328.4,2.03393]
[1759331247127,4.61993396,4328.5,4328.4,2.03393]
[1759331247321,4.08311619,4328.5,4328.4,2.03393]
[1759331248417,4.77431619,4328.5,4328.4,1.10963]
[1759331248617,5.31102601,4328.5,4328.4,0.41553]
[1759331249319,0.8735,4328.2,4328.1,1.10966]
[1759331249522,4.08311619,4328.5,4328.4,1.56274]
[1759331250024,4.08311619,4328.5,4328.4,2.03394]
[1759331250526,3.20961619,4328.5,4328.4,2.03394]
[1759331250729,0.00181619,4328.5,4328.4,2.03394]
[1759331251123,0.00181619,4328.5,4328.4,42.83394]
[1759331253531,4.7725,4330.1,4330.0,0.41538]
[1759331253720,5.31076436,4330.1,4329.9,0.41538]
[1759331253925,5.31076436,4330.1,4329.9,0.6941]
[1759331253926,2.10296436,4330.0,4329.9,0.6941]
[1759331254127,1.5647,4329.6,4329.5,1.4234]
[1759331254324,4.7725,4329.6,4329.1,0.6941]
[1759331254626,1.5647,4329.2,4329.1,0.00216359]
[1759331254830,2.10297851,4329.2,4329.1,0.00216359]
[1759331255322,0.8735,4329.2,4329.1,1.14936359]
[1759331255723,0.8735,4329.2,4329.1,0.00216359]
[1759331255925,1.5647,4329.2,4329.1,0.00216359]
[1759331256428,2.10290693,4329.2,4329.1,0.00216359]
[1759331257130,2.10290693,4329.2,4328.3,0.41554]
[1759331257131,1.5647,4328.4,4328.3,0.41554]
[1759331257927,1.5647,4328.4,4328.3,0.41811435]
[1759331258128,0.8735,4328.4,4328.3,1.56531435]
[1759331258325,3.2078,4329.1,4329.0,0.2762]
[1759331258524,0.00201032,4329.6,4329.5,0.41543]
[1759331258730,0.97404638,4329.6,4329.5,1.61593]
[1759331258926,0.97404638,4329.6,4329.5,2.31003]
[1759331259127,0.43591032,4329.6,4329.5,2.31003]
[1759331259324,0.87551032,4329.6,4329.5,1.8946]
[1759331259524,0.87551032,4329.6,4329.5,1.1472]
[1759331259525,1.56671032,4329.6,4329.5,1.1472]
[1759331259723,0.8735,4329.4,4329.3,0.41545]
[1759331259930,1.5647,4329.4,4329.3,0.41545]
[1759331260331,0.6912,4329.3,4329.1,40.8]
[1759331260535,3.899,4329.2,4329.1,41.90957]
[1759331261437,3.6417,4329.2,4329.1,2.03387]
[1759331261633,3.2078,4329.2,4329.1,2.03387]
[1759331264030,3.6417,4329.2,4329.1,2.03387]
[1759331264233,0.4339,4329.2,4329.1,2.03387]
[1759331265330,0.00201032,4329.6,4329.5,2.31003]
[1759331269932,3.2078,4330.4,4330.3,0.9243]
[1759331270128,3.2078,4330.4,4330.3,2.03375]
[1759331270923,3.20949557,4330.4,4330.3,2.03375]
[1759331271635,3.64339557,4330.4,4330.3,2.03375]
[1759331273632,0.9119,4330.1,4330.0,1.80718]
[1759331273939,1.5651,4329.6,4329.5,42.16933]
[1759331274143,4.7729,4329.6,4329.5,0.41543]
[1759331274444,0.9119,4329.1,4329.0,1.3995]
[1759331274636,4.1197,4329.1,4329.0,42.61498]
[1759331274835,4.7729,4329.1,4328.8,0.4155]
[1759331275036,1.5651,4328.9,4328.8,0.4155]
[1759331275439,0.6532,4328.8,4328.7,0.41551]